fUSD/lending_fUSD_20250606
["ID","MTS","AMOUNT","RATE_DAILY","PERIOD"]
[364722250,1749220241252,-50000.0,0.0003,22]
[364722252,1749220241261,-738.02069905,0.0003,30]
[364722254,1749220241271,-1800.0,0.0003,31]
[364722256,1749220241281,-222.0,0.0003,14]
[364722258,1749220241291,-881.80425309,0.0003,2]
[364722260,1749220241300,-239.4279877,0.0003,7]
[364722262,1749220241310,-186.88884126,0.0003,7]
[364722265,1749220241322,-150.0,0.0003,7]
[364722266,1749220241332,-150.0,0.0003,7]
[364722268,1749220241341,-150.0,0.0003,7]
[364722270,1749220241351,-150.0,0.0003,7]
[364722272,1749220241362,-150.0,0.0003,7]
[364722275,1749220241376,-150.0,0.0003,7]
[364722276,1749220241385,-150.0,0.0003,7]
[364722278,1749220241395,-150.0,0.0003,7]
[364722281,1749220241405,-150.0,0.0003,7]
[364722282,1749220241416,-150.0,0.0003,7]
[364722284,1749220241425,-150.0,0.0003,7]
[364722287,1749220241435,-134269.24456866,0.0003,5]
[364722288,1749220241445,-2001.11246221,0.0003,30]
[364722290,1749220241456,-15015.42867585,0.0003,30]
[364722292,1749220241465,-4289.97323588,0.0003,2]
[364722294,1749220241475,-699999.999999,0.0003,2]
[364722297,1749220241485,-10017.28146324,0.0003,2]
[364722299,1749220241495,-4241.38539233,0.0003,2]
[364722301,1749220241504,-4222.85073994,0.0003,2]
[364722303,1749220241514,-27195.48247358,0.0003,2]
[364722304,1749220241523,-19289.23548108,0.0003,2]
[364722307,1749220241533,-3034.41014909,0.0003,3]
[364722309,1749220241545,-342.2473347,0.0003,5]
[364722311,1749220241554,-206430.52976615,0.0003,2]
[364722313,1749220241565,-107530.08640797,0.0003,7]
[364722315,1749220241574,-35170.92505721,0.0003,2]
[364722317,1749220241584,-6171.65487847,0.0003,2]
[364722319,1749220241593,-1761.19770721,0.0003,2]
[364722321,1749220241603,-3257.10293361,0.0003,60]
[364722323,1749220241613,-160.86928785,0.0003,2]
[364722325,1749220241622,-1554.45349836,0.0003,2]
[364722327,1749220241632,-300.0,0.0003,30]
[364722329,1749220241641,-5034.56367987,0.0003,30]
[364722331,1749220241651,-2001.05750474,0.0003,2]
[364722333,1749220241661,-2007.81785906,0.0003,5]
[364722335,1749220241670,-251.84007891,0.0003,30]
[364722337,1749220241680,-10571.6441496,0.0003,2]
[364722339,1749220241689,-151.0,0.0003,7]
[364722341,1749220241699,-151.0,0.0003,7]
[364722343,1749220241708,-151.0,0.0003,7]
[364722345,1749220241718,-151.0,0.0003,7]
[364722347,1749220241727,-215.0,0.0003,2]
[364722349,1749220241737,-151.62552,0.0003,7]
[364722351,1749220241747,-4000.0,0.0003,4]
[364722353,1749220241756,-151.0,0.0003,7]
[364722355,1749220241766,-151.0,0.0003,7]
[364722357,1749220241775,-151.0,0.0003,7]
[364722359,1749220241785,-151.0,0.0003,7]
[364722361,1749220241795,-239.4279877,0.00030013,7]
[364722363,1749220241805,-186.88884126,0.00030013,7]
[364722365,1749220241815,-150.0,0.00030021,7]
[364722367,1749220241824,-300.0,0.00030021,10]
[364722369,1749220241834,-150.0,0.00030022,7]
[364722371,1749220241843,-239.4279877,0.00030027,7]
[364722373,1749220241853,-186.88884126,0.00030027,7]
[364722375,1749220241863,-150.0,0.00030028,7]
[364722377,1749220241872,-9203.34,0.0003003,7]
[364722379,1749220241882,-2000.0,0.00030031,2]
[364722381,1749220241891,-2000.0,0.00030031,2]
[364722383,1749220241900,-2000.0,0.00030031,2]
[364722385,1749220241911,-2000.0,0.00030031,2]
[364722387,1749220241920,-2000.0,0.00030031,2]
[364722389,1749220241930,-150.0,0.00030031,2]
[364722391,1749220241941,-151.0,0.00030031,7]
[364722393,1749220241950,-150.0,0.00030031,7]
[364722395,1749220241960,-1005.68853577,0.00030038,22]
[364722397,1749220241970,-150.0,0.00030039,2]
[364722399,1749220241979,-239.4279877,0.0003004,7]
[364722401,1749220241989,-186.88884126,0.0003004,7]
[364722403,1749220241998,-150.0,0.00030041,7]
[364722405,1749220242008,-150.0,0.00030044,7]
[364722407,1749220242018,-636.0,0.00030046,2]
[364722409,1749220242028,-801.0,0.00030046,2]
[364722411,1749220242038,-589.0,0.00030046,2]
[364722413,1749220242047,-557.0,0.00030046,2]
[364722415,1749220242058,-1999.0,0.00030046,2]
[364722417,1749220242067,-926.0,0.00030046,2]
[364722419,1749220242077,-1274.0,0.00030046,2]
[364722421,1749220242086,-1254.0,0.00030046,2]
[364722424,1749220242097,-1158.0,0.00030046,2]
[364722426,1749220242106,-151.0,0.00030046,7]
[364722428,1749220242116,-7017.0,0.00030046,2]
[364722430,1749220242126,-151.0,0.00030046,7]
[364722431,1749220242136,-151.0,0.00030046,7]
[364722434,1749220242146,-151.0,0.00030046,7]
[364722436,1749220242157,-296.506,0.00030046,2]
[364722438,1749220242166,-4081.0,0.00030046,2]
[364722440,1749220242176,-1164.0,0.00030046,2]
[364722441,1749220242186,-239.4279877,0.00030053,7]
[364722443,1749220242195,-186.88884126,0.00030053,7]
[364722445,1749220242205,-150.0,0.00030056,7]
[364722447,1749220242215,-150.0,0.00030062,7]
[364722449,1749220242225,-150.0,0.00030063,7]
[364722451,1749220242235,-150.0,0.00030066,7]
[364722453,1749220242245,-239.4279877,0.00030067,7]
[364722456,1749220242255,-186.88884126,0.00030067,7]
[364722457,1749220242264,-150.0,0.00030067,2]
[364722459,1749220242274,-150.0,0.00030069,7]
[364722462,1749220242285,-239.4279877,0.0003008,7]
[364722463,1749220242294,-186.88884126,0.0003008,7]
[364722466,1749220242304,-150.0,0.00030081,2]
[364722467,1749220242315,-150.0,0.00030082,7]
[364722470,1749220242325,-150.0,0.00030084,7]
[364722472,1749220242334,-150.0,0.00030088,7]
[364722474,1749220242344,-212.0,0.0003009,30]
[364722475,1749220242354,-239.4279877,0.00030093,7]
[364722477,1749220242364,-186.88884126,0.00030093,7]
[364722480,1749220242380,-150.0,0.00030094,7]
[364722481,1749220242390,-2000.0,0.00030099,2]
[364722484,1749220242400,-4500.0,0.000301,3]
[364722486,1749220242411,-79819.35991944,0.000301,2]
[364722487,1749220242421,-150.0,0.00030103,7]
[364722490,1749220242432,-150.0,0.00030105,2]
[364722492,1749220242444,-239.4279877,0.00030107,7]
[364722493,1749220242462,-186.88884126,0.00030107,7]
[364722496,1749220242471,-215.0738,0.00030108,2]
[364722498,1749220242481,-156.587,0.00030108,2]
[364722500,1749220242491,-150.0,0.0003011,7]
[364722502,1749220242501,-150.0,0.0003011,7]
[364722504,1749220242512,-239.4279877,0.0003012,7]
[364722506,1749220242523,-186.88884126,0.0003012,7]
[364722508,1749220242532,-150.0,0.00030124,7]
[364722510,1749220242542,-150.0,0.00030126,7]
[364722512,1749220242551,-9250.13282047,0.0003013,2]
[364722514,1749220242562,-5021.95969053,0.0003013,2]
[364722516,1749220242572,-195.59505992,0.0003013,2]
[364722518,1749220242583,-1791.0,0.00030131,30]
[364722520,1749220242594,-10871.32580694,0.00030131,2]
[364722522,1749220242604,-243.83308748,0.00030132,2]
[364722524,1749220242614,-150.0,0.00030132,7]
[364722526,1749220242624,-239.4279877,0.00030133,7]
[364722528,1749220242633,-186.88884126,0.00030133,7]
[364722530,1749220242642,-1000.0,0.00030134,2]
[364722532,1749220242651,-500.0,0.00030136,2]
[364722534,1749220242661,-175.03,0.00030137,80]
[364722536,1749220242671,-156.46,0.00030137,2]
[364722538,1749220242681,-150.0,0.00030139,7]
[364722540,1749220242691,-150.0,0.0003014,7]
[364722542,1749220242701,-150.0,0.00030144,7]
[364722544,1749220242711,-41689.3005784,0.00030145,2]
[364722546,1749220242720,-9203.34,0.00030146,7]
[364722548,1749220242730,-239.4279877,0.00030147,7]
[364722550,1749220242739,-186.88884126,0.00030147,7]
[364722552,1749220242748,-3900.0693574,0.00030147,2]
[364722554,1749220242758,-32754.694741,0.00030147,2]
[364722556,1749220242767,-94346.837597,0.00030147,2]
[364722557,1749220242777,-630.32656106,0.00030152,2]
[364722560,1749220242787,-168.16039187,0.00030154,2]
[364722562,1749220242797,-150.0,0.00030154,7]
[364722563,1749220242807,-799.33893387,0.00030154,2]
[364722565,1749220242816,-150.0,0.00030157,7]
[364722568,1749220242826,-239.4279877,0.0003016,7]
[364722570,1749220242835,-186.88884126,0.0003016,7]
[364722572,1749220242845,-9203.34,0.00030163,7]
[364722574,1749220242854,-9203.34,0.00030163,7]
[364722576,1749220242863,-9203.34,0.00030163,7]
[364722598,1749220243066,-2222.878919,0.00030164,7]
[364722600,1749220243075,-2069.069336,0.00030164,7]
[364722602,1749220243085,-162.836284,0.00030164,7]
[364722604,1749220243094,-299.223605,0.00030164,7]
[364722606,1749220243103,-480.0,0.00030164,7]
[364722608,1749220243112,-151.0,0.00030164,7]
[364722610,1749220243122,-839.7152,0.00030164,7]
[364722612,1749220243131,-839.7152,0.00030164,7]
[364722614,1749220243141,-151.0,0.00030164,7]
[364722616,1749220243150,-424.8448695,0.00030164,7]
[364722618,1749220243161,-151.0,0.00030164,7]
[364722620,1749220243170,-480.0,0.00030164,7]
[364722622,1749220243180,-480.0,0.00030164,7]
[364722624,1749220243190,-480.0,0.00030164,7]
[364722626,1749220243200,-480.0,0.00030164,7]
[364722628,1749220243209,-480.0,0.00030164,7]
[364722630,1749220243219,-478.14852214,0.00030164,7]
[364722632,1749220243230,-480.0,0.00030164,7]
[364722634,1749220243240,-250.0,0.00030164,7]
[364722636,1749220243250,-480.0,0.00030164,7]
[364722638,1749220243259,-403.40348865,0.00030164,7]
[364722640,1749220243269,-480.0,0.00030164,7]
[364722642,1749220243279,-601.89815684,0.00030164,7]
[364722644,1749220243289,-480.0,0.00030164,7]
[364722646,1749220243299,-480.0,0.00030164,7]
[364722648,1749220243308,-480.0,0.00030164,7]
[364722650,1749220243318,-480.0,0.00030164,7]
[364722653,1749220243328,-617.81,0.00030164,7]
[364722655,1749220243338,-480.0,0.00030164,7]
[364722657,1749220243347,-480.0,0.00030164,7]
[364722659,1749220243357,-480.0,0.00030164,7]
[364722661,1749220243368,-480.0,0.00030164,7]
[364722663,1749220243379,-428.89377785,0.00030164,7]
[364722665,1749220243389,-480.0,0.00030164,7]
[364722666,1749220243398,-480.0,0.00030164,7]
[364722669,1749220243409,-480.0,0.00030164,7]
[364722671,1749220243418,-480.0,0.00030164,7]
[364722673,1749220243428,-480.0,0.00030164,7]
[364722675,1749220243438,-480.0,0.00030164,7]
[364722677,1749220243448,-480.0,0.00030164,7]
[364722678,1749220243458,-480.0,0.00030164,7]
[364722680,1749220243467,-480.0,0.00030164,7]
[364722682,1749220243477,-480.0,0.00030164,7]
[364722684,1749220243487,-1997.23,0.00030164,7]
[364722685,1749220243497,-151.0,0.00030164,7]
[364722686,1749220243507,-480.0,0.00030164,7]
[364722688,1749220243516,-480.0,0.00030164,7]
[364722690,1749220243526,-847.34,0.00030164,7]
[364722692,1749220243535,-488.27536447,0.00030164,7]
[364722694,1749220243545,-151.0,0.00030164,7]
[364722696,1749220243554,-480.0,0.00030164,7]
[364722697,1749220243564,-480.0,0.00030164,7]
[364722699,1749220243574,-480.0,0.00030164,7]
[364722702,1749220243583,-480.0,0.00030164,7]
[364722704,1749220243593,-484.27539449,0.00030164,7]
[364722706,1749220243603,-480.0,0.00030164,7]
[364722708,1749220243613,-480.0,0.00030164,7]
[364722710,1749220243623,-480.0,0.00030164,7]
[364722712,1749220243633,-480.0,0.00030164,7]
[364722714,1749220243642,-480.0,0.00030164,7]
[364722716,1749220243654,-480.0,0.00030164,7]
[364722718,1749220243664,-480.0,0.00030164,7]
[364722720,1749220243673,-522.45176201,0.00030164,7]
[364722722,1749220243683,-480.0,0.00030164,7]
[364722724,1749220243692,-431.52592886,0.00030164,7]
[364722726,1749220243701,-480.0,0.00030164,7]
[364722728,1749220243711,-480.0,0.00030164,7]
[364722730,1749220243720,-240.70447444,0.00030164,7]
[364722732,1749220243730,-168.77765,0.00030164,7]
[364722734,1749220243739,-480.0,0.00030164,7]
[364722736,1749220243749,-355.56025355,0.00030164,7]
[364722738,1749220243758,-480.0,0.00030164,7]
[364722740,1749220243768,-480.0,0.00030164,7]
[364722742,1749220243777,-480.0,0.00030164,7]
[364722744,1749220243786,-480.0,0.00030164,7]
[364722746,1749220243795,-480.0,0.00030164,7]
[364722748,1749220243804,-493.41407649,0.00030164,7]
[364722750,1749220243814,-480.0,0.00030164,7]
[364722752,1749220243823,-480.0,0.00030164,7]
[364722754,1749220243833,-480.0,0.00030164,7]
[364722756,1749220243842,-480.0,0.00030164,7]
[364722758,1749220243852,-151.0,0.00030164,7]
[364722760,1749220243862,-480.0,0.00030164,7]
[364722762,1749220243871,-499.23357579,0.00030164,7]
[364722764,1749220243881,-480.0,0.00030164,7]
[364722766,1749220243890,-151.0,0.00030164,7]
[364722768,1749220243900,-557.72,0.00030164,7]
[364722771,1749220243911,-480.0,0.00030164,7]
[364722773,1749220243920,-502.36948059,0.00030164,7]
[364722775,1749220243929,-480.0,0.00030164,7]
[364722777,1749220243938,-480.0,0.00030164,7]
[364722779,1749220243948,-480.0,0.00030164,7]
[364722781,1749220243957,-480.0,0.00030164,7]
[364722783,1749220243966,-480.0,0.00030164,7]
[364722785,1749220243976,-458.49969352,0.00030164,7]
[364722787,1749220243985,-681.93,0.00030164,7]
[364722789,1749220243995,-480.0,0.00030164,7]
[364722791,1749220244004,-151.0,0.00030164,7]
[364722793,1749220244013,-383.41112128,0.00030164,7]
[364722795,1749220244022,-480.0,0.00030164,7]
[364722797,1749220244031,-480.0,0.00030164,7]
[364722799,1749220244040,-480.0,0.00030164,7]
[364722801,1749220244049,-683.06,0.00030164,7]
[364722802,1749220244058,-151.0,0.00030164,7]
[364722804,1749220244069,-480.0,0.00030164,7]
[364722807,1749220244079,-173.203436,0.00030164,7]
[364722809,1749220244088,-1194.15,0.00030164,7]
[364722811,1749220244098,-480.0,0.00030164,7]
[364722813,1749220244108,-480.0,0.00030164,7]
[364722814,1749220244119,-480.0,0.00030164,7]
[364722817,1749220244128,-504.02,0.00030164,7]
[364722818,1749220244137,-151.0,0.00030164,7]
[364722820,1749220244147,-151.0,0.00030164,7]
[364722823,1749220244157,-699.24,0.00030164,7]
[364722825,1749220244167,-480.0,0.00030164,7]
[364722826,1749220244177,-480.0,0.00030164,7]
[364722829,1749220244187,-480.0,0.00030164,7]
[364722831,1749220244196,-480.0,0.00030164,7]
[364722832,1749220244206,-480.0,0.00030164,7]
[364722834,1749220244215,-480.0,0.00030164,7]
[364722836,1749220244225,-480.0,0.00030164,7]
[364722839,1749220244234,-480.0,0.00030164,7]
[364722840,1749220244243,-480.0,0.00030164,7]
[364722843,1749220244253,-480.0,0.00030164,7]
[364722845,1749220244263,-480.0,0.00030164,7]
[364722847,1749220244273,-480.0,0.00030164,7]
[364722849,1749220244282,-480.0,0.00030164,7]
[364722851,1749220244292,-599.16652941,0.00030164,7]
[364722853,1749220244301,-480.0,0.00030164,7]
[364722855,1749220244310,-480.0,0.00030164,7]
[364722856,1749220244320,-480.0,0.00030164,7]
[364722858,1749220244330,-480.0,0.00030164,7]
[364722860,1749220244339,-819.51,0.00030164,7]
[364722862,1749220244348,-480.0,0.00030164,7]
[364722864,1749220244358,-482.18080561,0.00030164,7]
[364722866,1749220244369,-480.0,0.00030164,7]
[364722868,1749220244380,-480.0,0.00030164,7]
[364722870,1749220244390,-979.25,0.00030164,7]
[364722872,1749220244400,-613.49,0.00030164,7]
[364722874,1749220244410,-480.0,0.00030164,7]
[364722877,1749220244420,-480.0,0.00030164,7]
[364722879,1749220244430,-480.0,0.00030164,7]
[364722881,1749220244440,-480.0,0.00030164,7]
[364722882,1749220244451,-480.0,0.00030164,7]
[364722884,1749220244460,-1135.81,0.00030164,7]
[364722886,1749220244470,-480.0,0.00030164,7]
[364722888,1749220244480,-480.0,0.00030164,7]
[364722890,1749220244490,-480.0,0.00030164,7]
[364722892,1749220244499,-504.16,0.00030164,7]
[364722894,1749220244508,-480.0,0.00030164,7]
[364722896,1749220244518,-480.0,0.00030164,7]
[364722898,1749220244528,-480.0,0.00030164,7]
[364722900,1749220244537,-480.0,0.00030164,7]
[364722902,1749220244546,-480.0,0.00030164,7]
[364722904,1749220244556,-741.75,0.00030164,7]
[364722906,1749220244565,-480.0,0.00030164,7]
[364722908,1749220244575,-480.0,0.00030164,7]
[364722910,1749220244584,-830.77,0.00030164,7]
[364722912,1749220244594,-480.0,0.00030164,7]
[364722914,1749220244605,-480.0,0.00030164,7]
[364722916,1749220244614,-480.0,0.00030164,7]
[364722918,1749220244623,-151.0,0.00030164,7]
[364722920,1749220244633,-480.0,0.00030164,7]
[364722922,1749220244643,-843.49,0.00030164,7]
[364722924,1749220244653,-480.0,0.00030164,7]
[364722926,1749220244663,-480.0,0.00030164,7]
[364722928,1749220244672,-6539.273502,0.00030164,7]
[364722930,1749220244682,-480.0,0.00030164,7]
[364722932,1749220244692,-480.0,0.00030164,7]
[364722934,1749220244702,-151.0,0.00030164,7]
[364722936,1749220244711,-480.0,0.00030164,7]
[364722938,1749220244721,-480.0,0.00030164,7]
[364722940,1749220244730,-502.34256146,0.00030164,7]
[364722942,1749220244740,-480.0,0.00030164,7]
[364722944,1749220244749,-480.0,0.00030164,7]
[364722946,1749220244759,-480.0,0.00030164,7]
[364722948,1749220244769,-487.04689667,0.00030164,7]
[364722950,1749220244778,-162.01906958,0.00030164,7]
[364722952,1749220244788,-151.0,0.00030164,7]
[364722954,1749220244797,-2600.34,0.00030164,7]
[364722956,1749220244806,-480.0,0.00030164,7]
[364722958,1749220244816,-620.62,0.00030164,7]
[364722960,1749220244825,-480.0,0.00030164,7]
[364722962,1749220244834,-480.0,0.00030164,7]
[364722964,1749220244845,-1342.16,0.00030164,7]
[364722966,1749220244854,-847.94,0.00030164,7]
[364722968,1749220244863,-675.47,0.00030164,30]
[364722970,1749220244873,-480.0,0.00030164,7]
[364722972,1749220244882,-507.4,0.00030164,7]
[364722974,1749220244892,-480.0,0.00030164,7]
[364722976,1749220244901,-211.33821141,0.00030164,7]
[364722978,1749220244911,-480.0,0.00030164,7]
[364722980,1749220244921,-694.31,0.00030164,7]
[364722982,1749220244934,-1057.697866,0.00030164,7]
[364722984,1749220244943,-480.0,0.00030164,7]
[364722986,1749220244953,-527.72962559,0.00030164,7]
[364722988,1749220244962,-621.25,0.00030164,7]
[364722990,1749220244971,-480.0,0.00030164,7]
[364722992,1749220244981,-1057.697866,0.00030164,7]
[364722995,1749220244991,-480.0,0.00030164,7]
[364722998,1749220245000,-480.0,0.00030164,7]
[364723003,1749220245010,-480.0,0.00030164,7]
[364723005,1749220245019,-480.0,0.00030164,7]
[364723008,1749220245029,-480.0,0.00030164,7]
[364723011,1749220245038,-151.0,0.00030164,7]
[364723014,1749220245048,-480.0,0.00030164,7]
[364723016,1749220245058,-480.0,0.00030164,7]
[364723017,1749220245068,-197.05010142,0.00030164,7]
[364723018,1749220245077,-151.0,0.00030164,7]
[364723019,1749220245087,-480.0,0.00030164,7]
[364723020,1749220245097,-480.0,0.00030164,7]
[364723021,1749220245106,-346.563624,0.00030164,7]
[364723022,1749220245116,-480.0,0.00030164,7]
[364723023,1749220245125,-480.0,0.00030164,7]
[364723024,1749220245134,-151.0,0.00030164,7]
[364723025,1749220245144,-529.44,0.00030164,7]
[364723026,1749220245153,-737.4,0.00030164,7]
[364723027,1749220245162,-480.0,0.00030164,7]
[364723028,1749220245173,-151.0,0.00030164,7]
[364723029,1749220245182,-460.0,0.00030164,7]
[364723030,1749220245191,-346.563624,0.00030164,7]
[364723031,1749220245201,-480.0,0.00030164,7]
[364723032,1749220245213,-480.0,0.00030164,7]
[364723033,1749220245223,-721.19,0.00030164,7]
[364723034,1749220245233,-414.51703739,0.00030164,7]
[364723035,1749220245242,-606.93062687,0.00030164,7]
[364723036,1749220245253,-1441.03,0.00030164,7]
[364723037,1749220245262,-467.00093178,0.00030164,7]
[364723038,1749220245272,-480.0,0.00030164,7]
[364723039,1749220245283,-1003.2,0.00030164,7]
[364723040,1749220245293,-480.0,0.00030164,7]
[364723041,1749220245303,-480.0,0.00030164,7]
[364723042,1749220245313,-480.0,0.00030164,7]
[364723043,1749220245323,-1057.7,0.00030164,7]
[364723044,1749220245332,-480.0,0.00030164,7]
[364723045,1749220245342,-480.0,0.00030164,7]
[364723046,1749220245352,-480.0,0.00030164,7]
[364723047,1749220245364,-729.61,0.00030164,7]
[364723048,1749220245377,-480.0,0.00030164,7]
[364723049,1749220245387,-730.84,0.00030164,7]
[364723051,1749220245397,-689.59,0.00030164,7]
[364723053,1749220245407,-480.0,0.00030164,7]
[364723054,1749220245418,-409.09319824,0.00030164,7]
[364723055,1749220245428,-480.0,0.00030164,7]
[364723056,1749220245437,-1560.79,0.00030164,7]
[364723057,1749220245448,-480.0,0.00030164,7]
[364723059,1749220245458,-480.0,0.00030164,7]
[364723060,1749220245467,-1787.56,0.00030164,7]
[364723062,1749220245477,-488.59716867,0.00030164,7]
[364723073,1749220245547,-1063.57,0.00030164,7]
[364723076,1749220245557,-569.14945896,0.00030164,7]
[364723078,1749220245566,-775.63,0.00030164,7]
[364723080,1749220245576,-1536.34,0.00030164,7]
[364723082,1749220245585,-151.0,0.00030164,7]
[364723084,1749220245594,-151.0,0.00030164,7]
[364723086,1749220245603,-480.0,0.00030164,7]
[364723089,1749220245613,-480.0,0.00030164,7]
[364723092,1749220245622,-480.0,0.00030164,7]
[364723094,1749220245632,-1206.52,0.00030164,7]
[364723096,1749220245641,-480.0,0.00030164,7]
[364723098,1749220245651,-480.0,0.00030164,7]
[364723100,1749220245661,-480.0,0.00030164,7]
[364723102,1749220245670,-489.92817646,0.00030164,7]
[364723104,1749220245680,-480.0,0.00030164,7]
[364723106,1749220245689,-608.45,0.00030164,7]
[364723108,1749220245698,-480.0,0.00030164,7]
[364723110,1749220245707,-480.0,0.00030164,7]
[364723112,1749220245716,-610.0637988,0.00030164,10]
[364723113,1749220245726,-2000.0,0.00030164,7]
[364723116,1749220245735,-480.0,0.00030164,7]
[364723117,1749220245744,-920.1,0.00030164,7]
[364723119,1749220245754,-153.573906,0.00030164,7]
[364723121,1749220245763,-480.0,0.00030164,7]
[364723123,1749220245772,-480.0,0.00030164,7]
[364723125,1749220245781,-480.0,0.00030164,7]
[364723127,1749220245791,-460.0,0.00030164,7]
[364723129,1749220245800,-460.0,0.00030164,7]
[364723131,1749220245810,-480.0,0.00030164,7]
[364723133,1749220245819,-480.0,0.00030164,7]
[364723135,1749220245828,-1792.16,0.00030164,7]
[364723137,1749220245837,-862.41,0.00030164,7]
[364723139,1749220245847,-490.39,0.00030164,7]
[364723141,1749220245857,-151.0,0.00030164,7]
[364723143,1749220245868,-480.0,0.00030164,7]
[364723145,1749220245877,-151.0,0.00030164,7]
[364723147,1749220245887,-412.29498911,0.00030164,7]
[364723149,1749220245896,-480.0,0.00030164,7]
[364723151,1749220245906,-480.0,0.00030164,7]
[364723152,1749220245915,-151.0,0.00030164,7]
[364723154,1749220245924,-274.569016,0.00030164,7]
[364723156,1749220245938,-1262.12,0.00030164,7]
[364723158,1749220245947,-480.0,0.00030164,7]
[364723160,1749220245956,-1912.2,0.00030164,7]
[364723162,1749220245966,-480.0,0.00030164,7]
[364723164,1749220245975,-480.0,0.00030164,7]
[364723166,1749220245984,-480.0,0.00030164,7]
[364723168,1749220245994,-480.0,0.00030164,7]
[364723170,1749220246003,-151.0,0.00030164,7]
[364723172,1749220246012,-264.8104788,0.00030164,7]
[364723174,1749220246021,-480.0,0.00030164,7]
[364723176,1749220246031,-207.2535787,0.00030164,7]
[364723178,1749220246040,-789.07,0.00030164,7]
[364723180,1749220246049,-480.0,0.00030164,7]
[364723182,1749220246059,-480.0,0.00030164,7]
[364723184,1749220246068,-480.0,0.00030164,7]
[364723185,1749220246077,-490.96200865,0.00030164,7]
[364723186,1749220246087,-486.86,0.00030164,7]
[364723187,1749220246096,-480.0,0.00030164,7]
[364723188,1749220246105,-413.21713935,0.00030164,7]
[364723189,1749220246115,-480.0,0.00030164,7]
[364723190,1749220246124,-480.0,0.00030164,7]
[364723191,1749220246133,-480.0,0.00030164,7]
[364723192,1749220246142,-1009.26,0.00030164,7]
[364723193,1749220246151,-480.0,0.00030164,7]
[364723194,1749220246163,-480.0,0.00030164,7]
[364723195,1749220246172,-1163.93,0.00030164,7]
[364723196,1749220246182,-490.9305301,0.00030164,7]
[364723198,1749220246191,-1438.84,0.00030164,7]
[364723200,1749220246201,-480.0,0.00030164,7]
[364723202,1749220246210,-480.0,0.00030164,7]
[364723204,1749220246219,-485.50042967,0.00030164,7]
[364723206,1749220246229,-480.0,0.00030164,7]
[364723208,1749220246238,-480.0,0.00030164,7]
[364723210,1749220246247,-597.43,0.00030164,7]
[364723212,1749220246256,-557.37242719,0.00030164,7]
[364723214,1749220246265,-480.0,0.00030164,7]
[364723216,1749220246274,-480.0,0.00030164,7]
[364723218,1749220246283,-1570.73,0.00030164,7]
[364723220,1749220246293,-480.0,0.00030164,7]
[364723222,1749220246302,-480.0,0.00030164,7]
[364723224,1749220246311,-480.0,0.00030164,7]
[364723226,1749220246321,-480.0,0.00030164,7]
[364723228,1749220246330,-528.17,0.00030164,7]
[364723230,1749220246340,-151.0,0.00030164,7]
[364723232,1749220246349,-480.0,0.00030164,7]
[364723234,1749220246359,-151.0,0.00030164,7]
[364723236,1749220246370,-761.22,0.00030164,7]